[Event "1er Festival international de Cassis 2022"]
[Site "Cassis"]
[Date "2022.05.28"]
[Round "6.4"]
[White "Kunin, Vitaly"]
[Black "Bassini, Emile"]
[Result "1/2-1/2"]
[TimeControl "1 h 30 + 30 s"]
[WhiteElo "2539"]
[BlackElo "2221"]

1. d4 {[%clk 01:30:17]} {[%emt 00:00:40]} Nf6 {[%clk 01:30:23]} {[%emt
00:00:40]} 2. c4 {[%clk 01:30:27]} {[%emt 00:00:20]} e6 {[%clk 01:30:28]}
{[%emt 00:00:24]} 3. Nf3 {[%clk 01:30:41]} {[%emt 00:00:15]} d5 {[%clk
01:30:51]} {[%emt 00:00:09]} 4. Qc2 {[%clk 01:30:49]} {[%emt 00:00:22]} dxc4
{[%clk 01:26:02]} {[%emt 00:05:19]} 5. Qxc4 {[%clk 01:28:53]} {[%emt 00:02:26]}
a6 {[%clk 01:26:06]} {[%emt 00:00:25]} 6. a4 {[%clk 01:28:25]} {[%emt
00:00:59]} b5 {[%clk 01:24:29]} {[%emt 00:02:07]} 7. Qd3 {[%clk 01:28:45]}
{[%emt 00:00:08]} b4 {[%clk 01:17:14]} {[%emt 00:07:46]} 8. g4 {[%clk
01:24:41]} {[%emt 00:04:34]} Bb7 {[%clk 01:04:45]} {[%emt 00:12:59]} 9. g5
{[%clk 01:24:00]} {[%emt 00:01:12]} Nd5 {[%clk 01:05:01]} {[%emt 00:00:15]} 10.
e4 {[%clk 01:20:46]} {[%emt 00:03:44]} Nb6 {[%clk 01:05:19]} {[%emt 00:00:11]}
11. a5 {[%clk 01:19:52]} {[%emt 00:01:24]} N6d7 {[%clk 01:05:17]} {[%emt
00:00:31]} 12. Be3 {[%clk 01:13:25]} {[%emt 00:06:56]} Be7 {[%clk 01:01:58]}
{[%emt 00:03:48]} 13. Nbd2 {[%clk 01:13:08]} {[%emt 00:00:48]} O-O {[%clk
01:02:19]} {[%emt 00:00:09]} 14. Bg2 {[%clk 01:11:34]} {[%emt 00:02:04]} Nc6
{[%clk 00:59:28]} {[%emt 00:03:21]} 15. Qb3 {[%clk 01:07:19]} {[%emt 00:04:46]}
Na7 {[%clk 00:59:26]} {[%emt 00:00:33]} 16. h4 {[%clk 01:07:01]} {[%emt
00:00:48]} c5 {[%clk 00:56:49]} {[%emt 00:03:07]} 17. d5 {[%clk 01:03:35]}
{[%emt 00:03:55]} exd5 {[%clk 00:54:47]} {[%emt 00:02:33]} 18. exd5 {[%clk
01:04:00]} {[%emt 00:00:06]} Nb5 {[%clk 00:53:01]} {[%emt 00:02:15]} 19. Nh2
{[%clk 00:44:39]} {[%emt 00:19:53]} Ne5 {[%clk 00:42:40]} {[%emt 00:10:51]} 20.
O-O {[%clk 00:38:09]} {[%emt 00:07:00]} c4 {[%clk 00:42:55]} {[%emt 00:00:15]}
21. Nxc4 {[%clk 00:38:08]} {[%emt 00:00:31]} Bxd5 {[%clk 00:42:39]} {[%emt
00:00:46]} 22. Rfd1 {[%clk 00:37:38]} {[%emt 00:01:00]} Bxc4 {[%clk 00:43:01]}
{[%emt 00:00:08]} 23. Rxd8 {[%clk 00:37:57]} {[%emt 00:00:11]} Re8 {[%emt
00:06:59]} 24. Rxa8 Rxa8 {[%clk 00:36:32]} 25. Qa4 {[%clk 00:37:08]} {[%emt
00:01:18]} Rd8 {[%clk 00:32:07]} {[%emt 00:04:53]} 26. Bf4 {[%clk 00:35:18]}
{[%emt 00:02:21]} 1/2-1/2

[Event "1er Festival international de Cassis 2022"]
[Site "Cassis"]
[Date "2022.05.28"]
[Round "6.5"]
[White "Flear, Glenn C"]
[Black "Lever, Erwan"]
[Result "1/2-1/2"]
[TimeControl "1 h 30 + 30 s"]
[WhiteElo "2418"]
[BlackElo "2209"]

1. d4 {[%clk 01:30:56]} {[%emt 00:00:03]} Nf6 {[%clk 01:30:49]} {[%emt
00:00:12]} 2. c4 {[%clk 01:31:19]} {[%emt 00:00:07]} e6 {[%clk 01:31:16]}
{[%emt 00:00:03]} 3. Nc3 {[%clk 01:30:58]} {[%emt 00:00:50]} Bb4 {[%clk
01:31:42]} {[%emt 00:00:05]} 4. Qc2 {[%clk 01:31:07]} {[%emt 00:00:21]} d5
{[%clk 01:31:57]} {[%emt 00:00:16]} 5. cxd5 {[%clk 01:31:10]} {[%emt 00:00:26]}
exd5 {[%clk 01:32:19]} {[%emt 00:00:08]} 6. Bg5 {[%clk 01:31:03]} {[%emt
00:00:37]} h6 {[%clk 01:32:17]} {[%emt 00:00:33]} 7. Bxf6 {[%clk 01:31:20]}
{[%emt 00:00:12]} Qxf6 {[%clk 01:32:41]} {[%emt 00:00:07]} 8. a3 {[%clk
01:31:42]} {[%emt 00:00:08]} Bxc3+ {[%clk 01:33:08]} {[%emt 00:00:04]} 9. Qxc3
{[%clk 01:32:00]} {[%emt 00:00:12]} c6 {[%clk 01:33:32]} {[%emt 00:00:06]} 10.
e3 {[%clk 01:32:07]} {[%emt 00:00:22]} Bf5 {[%clk 01:33:55]} {[%emt 00:00:08]}
11. Nf3 {[%clk 01:30:27]} {[%emt 00:02:10]} Nd7 {[%clk 01:33:24]} {[%emt
00:01:01]} 12. Be2 {[%clk 01:29:54]} {[%emt 00:01:03]} O-O {[%clk 01:33:48]}
{[%emt 00:00:06]} 13. b4 {[%clk 01:28:06]} {[%emt 00:02:18]} Rac8 {[%clk
01:31:58]} {[%emt 00:02:21]} 14. O-O {[%clk 01:24:11]} {[%emt 00:04:25]} g5
{[%clk 01:29:43]} {[%emt 00:02:45]} 15. Rac1 {[%clk 01:21:45]} {[%emt
00:02:56]} g4 {[%clk 01:28:34]} {[%emt 00:01:39]} 16. Ne1 {[%clk 01:19:53]}
{[%emt 00:02:22]} Qg5 {[%clk 01:27:00]} {[%emt 00:02:04]} 17. Nd3 {[%clk
01:18:52]} {[%emt 00:01:31]} Nf6 {[%clk 01:26:53]} {[%emt 00:00:37]} 18. Nf4
{[%clk 01:17:43]} {[%emt 00:01:38]} h5 {[%clk 01:18:35]} {[%emt 00:08:49]} 19.
b5 {[%clk 01:11:43]} {[%emt 00:06:30]} h4 {[%clk 01:09:50]} {[%emt 00:09:15]}
20. bxc6 {[%clk 01:11:26]} {[%emt 00:00:47]} Rxc6 {[%clk 00:55:16]} {[%emt
00:15:04]} 21. Qa5 {[%clk 01:10:05]} {[%emt 00:01:51]} Rxc1 {[%clk 00:55:28]}
{[%emt 00:00:19]} 22. Rxc1 {[%clk 01:10:27]} {[%emt 00:00:06]} g3 {[%clk
00:55:50]} {[%emt 00:00:09]} 23. Bf3 {[%clk 00:40:41]} {[%emt 00:30:17]} gxf2+
{[%clk 00:50:21]} {[%emt 00:05:59]} 24. Kxf2 {[%clk 00:40:16]} {[%emt
00:00:54]} Re8 {[%clk 00:48:46]} {[%emt 00:02:05]} 25. Qxa7 {[%clk 00:37:06]}
{[%emt 00:03:41]} Be4 {[%clk 00:43:56]} {[%emt 00:05:20]} 26. Qxb7 {[%clk
00:34:59]} {[%emt 00:02:35]} Ng4+ {[%clk 00:43:40]} {[%emt 00:00:48]} 27. Bxg4
{[%clk 00:34:16]} {[%emt 00:01:13]} Qxg4 {[%clk 00:44:03]} {[%emt 00:00:06]} 28.
a4 {[%clk 00:27:31]} {[%emt 00:07:15]} h3 {[%clk 00:42:49]} {[%emt 00:01:44]}
29. Qb5 {[%clk 00:25:45]} {[%emt 00:02:16]} Ra8 {[%clk 00:37:31]} {[%emt
00:05:48]} 30. Qe2 {[%clk 00:24:39]} {[%emt 00:01:36]} Qxe2+ {[%clk 00:35:41]}
{[%emt 00:02:21]} 31. Kxe2 {[%clk 00:25:03]} {[%emt 00:00:06]} hxg2 {[%clk
00:28:31]} {[%emt 00:07:40]} 32. Nxg2 {[%clk 00:25:26]} {[%emt 00:00:07]} Rxa4
{[%clk 00:28:25]} {[%emt 00:00:36]} 33. Nf4 {[%clk 00:25:24]} {[%emt 00:00:31]}
Ra2+ {[%clk 00:28:45]} {[%emt 00:00:11]} 34. Kf1 {[%clk 00:25:13]} {[%emt
00:00:39]} Rxh2 {[%clk 00:24:59]} {[%emt 00:04:18]} 35. Rc5 {[%clk 00:25:35]}
{[%emt 00:00:07]} Kg7 {[%clk 00:20:09]} {[%emt 00:05:22]} 36. Nxd5 {[%clk
00:25:54]} {[%emt 00:00:10]} f5 {[%clk 00:19:08]} {[%emt 00:01:31]} 37. Nf4
{[%clk 00:24:49]} {[%emt 00:01:35]} Kf6 {[%clk 00:19:25]} {[%emt 00:00:13]} 38.
Rc8 {[%clk 00:23:01]} {[%emt 00:02:17]} Ra2 {[%clk 00:19:45]} {[%emt 00:00:11]}
39. Rg8 {[%clk 00:21:31]} {[%emt 00:02:00]} Kf7 {[%clk 00:19:49]} {[%emt
00:00:27]} 40. Rg5 {[%clk 00:21:03]} {[%emt 00:00:58]} Kf6 {[%clk 00:17:20]}
{[%emt 00:02:58]} 41. Rg6+ {[%clk 00:20:05]} {[%emt 00:01:28]} Kf7 {[%clk
00:17:47]} {[%emt 00:00:03]} 42. Rh6 {[%clk 00:20:14]} {[%emt 00:00:21]} Ra1+
{[%clk 00:16:53]} {[%emt 00:01:25]} 43. Kf2 {[%clk 00:19:43]} {[%emt 00:01:01]}
Ra2+ {[%clk 00:17:17]} {[%emt 00:00:06]} 44. Ke1 {[%clk 00:19:14]} {[%emt
00:00:59]} Ra1+ {[%clk 00:16:47]} {[%emt 00:01:00]} 45. Kd2 {[%clk 00:19:39]}
{[%emt 00:00:05]} Ra2+ {[%clk 00:17:14]} {[%emt 00:00:04]} 46. Kc1 {[%clk
00:19:47]} {[%emt 00:00:21]} Rc2+ {[%clk 00:17:16]} {[%emt 00:00:28]} 47. Kd1
{[%clk 00:20:11]} {[%emt 00:00:07]} Rb2 {[%clk 00:17:42]} {[%emt 00:00:04]} 48.
Rh3 {[%clk 00:19:00]} {[%emt 00:01:40]} Kf6 {[%clk 00:17:28]} {[%emt 00:00:45]}
49. Rg3 {[%clk 00:17:19]} {[%emt 00:02:10]} Ra2 {[%clk 00:17:46]} {[%emt
00:00:13]} 50. Ke1 {[%clk 00:15:59]} {[%emt 00:01:49]} Ke7 {[%clk 00:16:39]}
{[%emt 00:01:38]} 51. Rh3 {[%clk 00:14:37]} {[%emt 00:01:53]} Kf6 {[%clk
00:16:52]} {[%emt 00:00:16]} 52. Rg3 {[%clk 00:13:15]} {[%emt 00:01:52]} Ke7
{[%clk 00:17:16]} {[%emt 00:00:06]} 53. Ne2 {[%clk 00:12:54]} {[%emt 00:00:50]}
Rb2 {[%clk 00:16:47]} {[%emt 00:00:59]} 54. Nc3 {[%clk 00:10:23]} {[%emt
00:03:01]} Bd3 {[%clk 00:15:00]} {[%emt 00:02:16]} 55. Rf3 {[%clk 00:07:37]}
{[%emt 00:03:16]} Kd6 {[%clk 00:08:25]} {[%emt 00:07:06]} 56. Rf2 {[%clk
00:07:12]} {[%emt 00:00:55]} Rb3 {[%clk 00:08:49]} {[%emt 00:00:07]} 57. Nd1
{[%clk 00:06:34]} {[%emt 00:01:08]} Be4 {[%clk 00:07:24]} {[%emt 00:01:55]} 58.
Rb2 {[%clk 00:06:40]} {[%emt 00:00:23]} Ra3 {[%clk 00:07:21]} {[%emt 00:00:34]}
59. Ke2 {[%clk 00:05:41]} {[%emt 00:01:25]} f4 {[%clk 00:06:29]} {[%emt
00:01:25]} 60. exf4 {[%clk 00:05:34]} {[%emt 00:00:37]} Bf3+ {[%clk 00:06:54]}
{[%emt 00:00:05]} 61. Kd2 {[%clk 00:05:54]} {[%emt 00:00:09]} Bxd1 {[%clk
00:07:11]} {[%emt 00:00:13]} 62. Kxd1 {[%clk 00:06:20]} {[%emt 00:00:05]} Rf3
{[%clk 00:07:36]} {[%emt 00:00:04]} 63. Ke2 {[%clk 00:06:24]} {[%emt 00:00:25]}
Rxf4 {[%clk 00:08:00]} {[%emt 00:00:06]} 1/2-1/2

[Event "1er Festival international de Cassis 2022"]
[Site "Cassis"]
[Date "2022.05.28"]
[Round "6.6"]
[White "Hamm, Fabien"]
[Black "Degraeve, Remy"]
[Result "0-1"]
[TimeControl "1 h 30 + 30 s"]
[WhiteElo "2020"]
[BlackElo "2383"]

1. e4 {[%clk 01:30:23]} {[%emt 00:00:36]} e5 {[%clk 01:30:36]} {[%emt
00:00:25]} 2. Nf3 {[%clk 01:30:00]} {[%emt 00:00:52]} Nc6 {[%clk 01:30:49]}
{[%emt 00:00:17]} 3. Nc3 {[%clk 01:30:07]} {[%emt 00:00:24]} Nf6 {[%clk
01:31:13]} {[%emt 00:00:06]} 4. d4 {[%clk 01:30:19]} {[%emt 00:00:17]} exd4
{[%clk 01:31:40]} {[%emt 00:00:04]} 5. Nxd4 {[%clk 01:30:39]} {[%emt 00:00:09]}
Nxe4 {[%clk 01:32:05]} {[%emt 00:00:05]} 6. Nxc6 {[%clk 01:11:08]} {[%emt
00:20:01]} Nxc3 {[%clk 01:32:28]} {[%emt 00:00:08]} 7. Qd4 {[%clk 01:06:42]}
{[%emt 00:04:56]} dxc6 {[%clk 01:29:14]} {[%emt 00:03:44]} 8. Qxd8+ {[%clk
00:55:08]} {[%emt 00:12:03]} Kxd8 {[%clk 01:29:23]} {[%emt 00:00:21]} 9. bxc3
{[%clk 00:55:33]} {[%emt 00:00:06]} Be6 {[%clk 01:28:57]} {[%emt 00:00:56]} 10.
Be3 {[%clk 00:54:23]} {[%emt 00:01:39]} Ba3 {[%clk 01:27:37]} {[%emt 00:01:50]}
11. Rd1+ {[%clk 00:53:01]} {[%emt 00:01:52]} Ke7 {[%clk 01:27:17]} {[%emt
00:00:50]} 12. Bd3 {[%clk 00:51:50]} {[%emt 00:01:42]} Rhd8 {[%clk 01:24:17]}
{[%emt 00:03:29]} 13. h4 {[%clk 00:47:53]} {[%emt 00:04:27]} h6 {[%clk
01:23:52]} {[%emt 00:00:55]} 14. h5 {[%clk 00:36:08]} {[%emt 00:12:14]} b6
{[%clk 01:18:57]} {[%emt 00:05:25]} 15. Rh4 {[%clk 00:34:18]} {[%emt 00:02:19]}
a5 {[%clk 01:15:48]} {[%emt 00:03:39]} 16. f4 {[%clk 00:26:48]} {[%emt
00:07:59]} Kf8 {[%clk 01:13:04]} {[%emt 00:03:15]} 17. c4 {[%clk 00:21:24]}
{[%emt 00:05:53]} Bb4+ {[%clk 01:13:08]} {[%emt 00:00:27]} 18. Kf2 {[%clk
00:20:28]} {[%emt 00:01:26]} Bxc4 {[%clk 01:12:36]} {[%emt 00:01:03]} 19. f5
{[%clk 00:20:25]} {[%emt 00:00:32]} Bxd3 {[%clk 01:11:57]} {[%emt 00:01:10]} 20.
cxd3 {[%clk 00:20:02]} {[%emt 00:00:53]} Be7 {[%clk 01:12:18]} {[%emt
00:00:09]} 21. Rc4 {[%clk 00:18:01]} {[%emt 00:02:31]} c5 {[%clk 01:12:41]}
{[%emt 00:00:08]} 22. a4 {[%clk 00:18:09]} {[%emt 00:00:22]} Rd5 {[%clk
01:13:05]} {[%emt 00:00:06]} 23. g4 {[%clk 00:17:42]} {[%emt 00:00:57]} Rad8
{[%clk 01:13:32]} {[%emt 00:00:03]} 24. Ke2 {[%clk 00:16:51]} {[%emt 00:01:21]}
Bg5 {[%clk 01:11:31]} {[%emt 00:02:31]} 25. Bf2 {[%clk 00:15:25]} {[%emt
00:01:56]} R8d7 {[%clk 01:11:13]} {[%emt 00:00:49]} 26. Bg1 {[%clk 00:14:35]}
{[%emt 00:01:19]} Bf6 {[%clk 01:11:29]} {[%emt 00:00:13]} 27. Be3 {[%clk
00:12:58]} {[%emt 00:02:07]} Re7 {[%clk 01:08:51]} {[%emt 00:03:09]} 28. Kf3
{[%clk 00:12:52]} {[%emt 00:00:35]} Bg5 {[%clk 01:09:16]} {[%emt 00:00:06]} 29.
Bf2 {[%clk 00:12:56]} {[%emt 00:00:26]} g6 {[%clk 01:08:26]} {[%emt 00:01:20]}
30. fxg6 {[%clk 00:10:17]} {[%emt 00:03:09]} fxg6 {[%clk 01:08:43]} {[%emt
00:00:14]} 31. hxg6 {[%clk 00:10:00]} {[%emt 00:00:46]} Kg7 {[%clk 01:09:09]}
{[%emt 00:00:04]} 32. Re4 {[%clk 00:09:31]} {[%emt 00:01:00]} Kxg6 {[%clk
01:09:10]} {[%emt 00:00:29]} 33. Bg3 {[%clk 00:03:42]} {[%emt 00:06:19]} Rxe4
{[%clk 01:08:50]} {[%emt 00:00:50]} 34. Kxe4 {[%clk 00:04:04]} {[%emt
00:00:07]} Rd4+ {[%clk 01:09:17]} {[%emt 00:00:03]} 35. Kf3 {[%clk 00:04:18]}
{[%emt 00:00:16]} c4 {[%clk 01:09:29]} {[%emt 00:00:18]} 36. Bxc7 {[%clk
00:03:58]} {[%emt 00:00:49]} c3 {[%clk 01:09:55]} {[%emt 00:00:04]} 0-1

[Event "1er Festival international de Cassis 2022"]
[Site "Cassis"]
[Date "2022.05.28"]
[Round "6.7"]
[White "Acikgoz, Tuncay"]
[Black "Dudognon, Thibault"]
[Result "0-1"]
[TimeControl "1 h 30 + 30 s"]
[WhiteElo "1874"]
[BlackElo "2305"]

1. d4 {[%clk 01:20:01]} {[%emt 00:10:58]} d5 {[%clk 01:30:44]} {[%emt
00:00:16]} 2. c4 {[%clk 01:20:25]} {[%emt 00:00:06]} e6 {[%clk 01:31:01]}
{[%emt 00:00:13]} 3. Nf3 {[%clk 01:20:50]} {[%emt 00:00:05]} c6 {[%clk
01:31:27]} {[%emt 00:00:03]} 4. g3 {[%clk 01:21:18]} {[%emt 00:00:03]} dxc4
{[%clk 01:31:49]} {[%emt 00:00:08]} 5. Bg2 {[%clk 01:21:41]} {[%emt 00:00:07]}
b5 {[%clk 01:32:02]} {[%emt 00:00:16]} 6. O-O {[%clk 01:22:06]} {[%emt
00:00:06]} Bb7 {[%clk 01:32:23]} {[%emt 00:00:09]} 7. b3 {[%clk 01:22:30]}
{[%emt 00:00:06]} cxb3 {[%clk 01:29:34]} {[%emt 00:03:18]} 8. Qxb3 {[%clk
01:21:56]} {[%emt 00:01:05]} Nd7 {[%clk 01:28:35]} {[%emt 00:01:28]} 9. Nc3
{[%clk 01:21:03]} {[%emt 00:01:23]} Ngf6 {[%clk 01:26:45]} {[%emt 00:02:20]} 10.
Ne5 {[%clk 01:20:06]} {[%emt 00:01:27]} Nxe5 {[%clk 01:13:34]} {[%emt
00:13:41]} 11. dxe5 {[%clk 01:19:39]} {[%emt 00:00:57]} Nd7 {[%clk 01:14:01]}
{[%emt 00:00:02]} 12. Rd1 {[%clk 01:14:14]} {[%emt 00:05:56]} Qc7 {[%clk
01:12:04]} {[%emt 00:02:26]} 13. Bf4 {[%clk 01:10:04]} {[%emt 00:04:40]} a6
{[%clk 01:06:51]} {[%emt 00:05:43]} 14. Ne4 {[%clk 01:02:14]} {[%emt 00:08:20]}
Nc5 {[%clk 01:03:18]} {[%emt 00:04:03]} 15. Nxc5 {[%clk 01:01:08]} {[%emt
00:01:36]} Bxc5 {[%clk 01:03:44]} {[%emt 00:00:04]} 16. Rac1 {[%clk 01:01:29]}
{[%emt 00:00:10]} Be7 {[%clk 00:58:28]} {[%emt 00:05:45]} 17. a4 {[%clk
00:59:40]} {[%emt 00:02:20]} b4 {[%clk 00:54:10]} {[%emt 00:04:48]} 18. Qc4
{[%clk 00:59:32]} {[%emt 00:00:38]} O-O {[%clk 00:49:02]} {[%emt 00:05:38]} 19.
Be3 {[%clk 00:57:22]} {[%emt 00:02:41]} a5 {[%clk 00:41:27]} {[%emt 00:08:04]}
20. Qg4 {[%clk 00:54:59]} {[%emt 00:02:54]} Rfd8 {[%clk 00:39:17]} {[%emt
00:02:39]} 21. Bg5 {[%clk 00:45:40]} {[%emt 00:09:49]} Bxg5 {[%clk 00:34:04]}
{[%emt 00:05:42]} 22. Qxg5 {[%clk 00:46:04]} {[%emt 00:00:06]} h6 {[%clk
00:34:22]} {[%emt 00:00:12]} 23. Qf4 {[%clk 00:45:13]} {[%emt 00:01:22]} Rxd1+
{[%clk 00:32:34]} {[%emt 00:02:18]} 24. Rxd1 {[%clk 00:45:14]} {[%emt
00:00:29]} c5 {[%clk 00:33:03]} {[%emt 00:00:01]} 25. Bxb7 {[%clk 00:42:00]}
{[%emt 00:03:44]} Qxb7 {[%clk 00:33:31]} {[%emt 00:00:01]} 26. Qc4 {[%clk
00:41:45]} {[%emt 00:00:46]} Rc8 {[%clk 00:33:11]} {[%emt 00:00:48]} 27. f4
{[%clk 00:41:56]} {[%emt 00:00:20]} Qc6 {[%clk 00:32:13]} {[%emt 00:01:28]} 28.
Rd6 {[%clk 00:40:07]} {[%emt 00:02:21]} Qxa4 {[%clk 00:31:52]} {[%emt
00:00:50]} 29. Rxe6 {[%clk 00:39:22]} {[%emt 00:01:15]} Qd1+ {[%clk 00:31:43]}
{[%emt 00:00:39]} 30. Kg2 {[%clk 00:39:51]} {[%emt 00:00:02]} Rd8 {[%clk
00:26:53]} {[%emt 00:05:19]} 31. Ra6 {[%clk 00:31:22]} {[%emt 00:08:59]} b3
{[%clk 00:20:27]} {[%emt 00:06:56]} 32. e6 {[%clk 00:25:37]} {[%emt 00:06:16]}
fxe6 {[%clk 00:20:40]} {[%emt 00:00:16]} 33. Qxe6+ {[%clk 00:24:56]} {[%emt
00:01:11]} Kh8 {[%clk 00:21:05]} {[%emt 00:00:04]} 34. Rb6 {[%clk 00:16:07]}
{[%emt 00:09:19]} a4 {[%clk 00:21:09]} {[%emt 00:00:27]} 35. Qe7 {[%clk
00:14:30]} {[%emt 00:02:08]} Qd5+ {[%clk 00:19:09]} {[%emt 00:02:29]} 36. e4
{[%clk 00:13:46]} {[%emt 00:01:15]} Qd2+ {[%clk 00:19:32]} {[%emt 00:00:06]} 37.
Kf3 {[%clk 00:14:02]} {[%emt 00:00:14]} Qd1+ {[%clk 00:19:48]} {[%emt
00:00:13]} 0-1

[Event "1er Festival international de Cassis 2022"]
[Site "Cassis"]
[Date "2022.05.28"]
[Round "6.8"]
[White "Kuhn, Clement"]
[Black "Baroyan, Davit"]
[Result "1/2-1/2"]
[TimeControl "1 h 30 + 30 s"]
[WhiteElo "2280"]
[BlackElo "2148"]

1. d4 {[%clk 01:30:58]} d5 {[%clk 01:28:49]} {[%emt 00:02:12]} 2. c4 {[%clk
01:31:10]} {[%emt 00:00:18]} e6 {[%clk 01:29:10]} {[%emt 00:00:10]} 3. Nc3
{[%clk 01:31:32]} {[%emt 00:00:07]} c6 {[%clk 01:29:35]} {[%emt 00:00:05]} 4.
e4 {[%clk 01:31:57]} {[%emt 00:00:06]} dxe4 {[%clk 01:30:02]} {[%emt 00:00:04]}
5. Nxe4 {[%clk 01:32:21]} {[%emt 00:00:05]} Bb4+ {[%clk 01:30:29]} {[%emt
00:00:03]} 6. Nc3 {[%clk 01:32:28]} {[%emt 00:00:23]} c5 {[%clk 01:30:51]}
{[%emt 00:00:09]} 7. Nf3 {[%clk 01:32:49]} {[%emt 00:00:09]} Nc6 {[%clk
01:30:57]} {[%emt 00:00:24]} 8. Be3 {[%clk 01:30:32]} {[%emt 00:02:47]} Nf6
{[%clk 01:31:21]} {[%emt 00:00:06]} 9. Be2 {[%clk 01:30:57]} {[%emt 00:00:05]}
Ng4 {[%clk 01:26:48]} {[%emt 00:05:03]} 10. Bg5 {[%clk 01:30:30]} {[%emt
00:00:57]} f6 {[%clk 01:08:28]} {[%emt 00:18:50]} 11. d5 {[%clk 01:30:54]}
{[%emt 00:00:06]} Nce5 {[%clk 00:50:25]} {[%emt 00:18:33]} 12. Nxe5 {[%clk
01:24:40]} {[%emt 00:06:44]} Nxe5 {[%clk 00:49:52]} {[%emt 00:01:03]} 13. Bd2
{[%clk 01:21:05]} {[%emt 00:04:05]} O-O {[%clk 00:46:51]} {[%emt 00:03:30]} 14.
O-O {[%clk 01:20:39]} {[%emt 00:00:56]} exd5 {[%clk 00:42:53]} {[%emt
00:04:28]} 15. cxd5 {[%clk 01:18:50]} {[%emt 00:02:19]} Bf5 {[%clk 00:40:36]}
{[%emt 00:02:47]} 16. f4 {[%clk 01:14:42]} {[%emt 00:04:38]} Nf7 {[%clk
00:34:19]} {[%emt 00:06:47]} 17. g4 {[%clk 01:01:05]} {[%emt 00:14:07]} Bxc3
{[%clk 00:34:01]} {[%emt 00:00:48]} 18. Bxc3 {[%clk 01:00:53]} {[%emt
00:00:42]} Be4 {[%clk 00:34:05]} {[%emt 00:00:25]} 19. Bf3 {[%clk 01:00:11]}
{[%emt 00:01:12]} Nd6 {[%clk 00:33:40]} {[%emt 00:00:55]} 20. Re1 {[%clk
00:58:23]} {[%emt 00:02:18]} Re8 {[%clk 00:32:05]} {[%emt 00:02:05]} 21. Bxe4
{[%clk 00:52:26]} {[%emt 00:06:27]} Rxe4 {[%clk 00:28:02]} {[%emt 00:04:33]} 22.
Qf3 {[%clk 00:41:19]} {[%emt 00:11:36]} Qe7 {[%clk 00:27:03]} {[%emt 00:01:30]}
23. Rxe4 {[%clk 00:41:33]} {[%emt 00:00:16]} Qxe4 {[%clk 00:27:29]} {[%emt
00:00:04]} 24. Qxe4 {[%clk 00:41:24]} {[%emt 00:00:39]} Nxe4 {[%clk 00:27:57]}
{[%emt 00:00:02]} 25. Re1 {[%clk 00:40:24]} {[%emt 00:01:30]} Re8 {[%clk
00:24:48]} {[%emt 00:03:39]} 1/2-1/2

[Event "1er Festival international de Cassis 2022"]
[Site "Cassis"]
[Date "2022.05.28"]
[Round "7.1"]
[White "Philippe, Guillaume"]
[Black "Sivuk, Vitaly"]
[Result "0-1"]
[TimeControl "1 h 30 + 30 s"]
[WhiteElo "2405"]
[BlackElo "2529"]

1. b3 {[%clk 01:30:52]} {[%emt 00:00:07]} Nf6 {[%clk 01:30:44]} {[%emt
00:00:16]} 2. Bb2 {[%clk 01:31:16]} {[%emt 00:00:07]} g6 {[%clk 01:31:03]}
{[%emt 00:00:10]} 3. c4 {[%clk 01:29:24]} {[%emt 00:02:23]} Bg7 {[%clk
01:31:20]} {[%emt 00:00:12]} 4. Nf3 {[%clk 01:29:36]} {[%emt 00:00:18]} O-O
{[%clk 01:31:30]} {[%emt 00:00:20]} 5. e3 {[%clk 01:29:18]} {[%emt 00:00:49]}
c5 {[%clk 01:31:36]} {[%emt 00:00:23]} 6. Be2 {[%clk 01:29:13]} {[%emt
00:00:36]} b6 {[%clk 01:31:23]} {[%emt 00:00:41]} 7. O-O {[%clk 01:28:44]}
{[%emt 00:01:01]} Bb7 {[%clk 01:31:47]} {[%emt 00:00:05]} 8. a3 {[%clk
01:24:26]} {[%emt 00:04:48]} Nc6 {[%clk 01:31:34]} {[%emt 00:00:43]} 9. d3
{[%clk 01:21:09]} {[%emt 00:03:48]} d5 {[%clk 01:28:03]} {[%emt 00:03:59]} 10.
cxd5 {[%clk 01:19:43]} {[%emt 00:01:58]} Nxd5 {[%clk 01:28:10]} {[%emt
00:00:22]} 11. Bxg7 {[%clk 01:18:40]} {[%emt 00:01:32]} Kxg7 {[%clk 01:28:34]}
{[%emt 00:00:06]} 12. Ra2 {[%clk 01:15:25]} {[%emt 00:03:47]} e5 {[%clk
01:25:07]} {[%emt 00:03:57]} 13. Rc2 {[%clk 01:11:47]} {[%emt 00:04:07]} f5
{[%clk 01:24:06]} {[%emt 00:01:31]} 14. Qc1 {[%clk 01:11:43]} {[%emt 00:00:35]}
Qf6 {[%clk 01:23:22]} {[%emt 00:01:13]} 15. Qb2 {[%clk 01:11:46]} {[%emt
00:00:27]} a5 {[%clk 01:08:04]} {[%emt 00:15:46]} 16. Nc3 {[%clk 01:07:05]}
{[%emt 00:05:13]} Nxc3 {[%clk 01:05:01]} {[%emt 00:03:33]} 17. Qxc3 {[%clk
01:07:17]} {[%emt 00:00:19]} Rfe8 {[%clk 01:05:13]} {[%emt 00:00:17]} 18. Nd2
{[%clk 01:07:08]} {[%emt 00:00:40]} Nd4 {[%clk 01:03:21]} {[%emt 00:02:21]} 19.
exd4 {[%clk 00:49:09]} {[%emt 00:18:29]} exd4 {[%clk 01:03:40]} {[%emt
00:00:10]} 20. Ne4 {[%clk 00:48:47]} {[%emt 00:00:53]} fxe4 {[%clk 00:59:39]}
{[%emt 00:04:30]} 21. Qd2 {[%clk 00:49:12]} {[%emt 00:00:05]} Re5 {[%clk
00:55:51]} {[%emt 00:04:19]} 22. b4 {[%clk 00:47:31]} {[%emt 00:02:11]} axb4
{[%clk 00:56:04]} {[%emt 00:00:16]} 23. axb4 {[%clk 00:47:58]} {[%emt
00:00:04]} Rg5 {[%clk 00:50:36]} {[%emt 00:05:57]} 24. f3 {[%clk 00:47:35]}
{[%emt 00:00:54]} exf3 {[%clk 00:49:58]} {[%emt 00:01:08]} 25. Bxf3 {[%clk
00:44:32]} {[%emt 00:03:33]} Bxf3 {[%clk 00:50:20]} {[%emt 00:00:06]} 26. bxc5
{[%clk 00:43:30]} {[%emt 00:01:32]} bxc5 {[%clk 00:49:59]} {[%emt 00:00:50]} 27.
Qc1 {[%clk 00:37:07]} {[%emt 00:06:54]} Qf5 {[%clk 00:42:23]} {[%emt 00:08:05]}
28. Rcf2 {[%clk 00:09:26]} {[%emt 00:28:11]} Qg4 {[%clk 00:42:08]} {[%emt
00:00:45]} 29. Qc4 {[%clk 00:04:34]} {[%emt 00:05:23]} Qxg2+ {[%clk 00:40:54]}
{[%emt 00:01:44]} 30. Rxg2 {[%clk 00:04:59]} {[%emt 00:00:05]} Rxg2+ {[%clk
00:41:18]} {[%emt 00:00:05]} 31. Kh1 {[%clk 00:05:27]} {[%emt 00:00:04]} Rc2+
{[%clk 00:41:41]} {[%emt 00:00:07]} 32. Rxf3 {[%clk 00:05:49]} {[%emt
00:00:09]} Rxc4 {[%clk 00:42:05]} {[%emt 00:00:05]} 33. dxc4 {[%clk 00:06:09]}
{[%emt 00:00:10]} Ra4 {[%clk 00:42:28]} {[%emt 00:00:06]} 0-1